{"text_format":"1","workbook":"xlsx","n_sheets":1,"sheets":["Hoja1"],"not_rendered":{"charts":0,"images":0,"macros":1,"external_links":0,"defined_names":0,"comments":0,"pivot_tables":0},"unopened":[],"bounds":{"document_bytes":16777216,"sheet_cells":100000,"rows_first":2000,"rows_last":500,"rows_between":2000,"halvings":0,"cell_chars":16384,"cell_head_chars":4096},"cells_cut":0,"cells_raw":0,"read":"whole","date_system":"1900"}

{"sheet":"Hoja1","index":0,"n_rows":29,"n_cols":34,"rows_kept":29,"cut":false,"hidden":false,"merged":[[0,0,0,9],[0,11,0,20],[0,22,0,28],[1,2,1,3],[2,8,2,9],[1,4,1,9],[2,6,2,7],[2,13,2,14],[2,15,2,16],[1,17,1,18],[1,19,1,20],[2,17,2,18],[2,19,2,20],[2,2,2,3],[1,0,2,1],[1,30,1,33],[2,4,2,5],[1,28,2,28],[2,24,2,25],[1,13,1,16],[2,26,2,27],[1,24,1,27],[2,30,2,31],[1,22,2,23],[1,11,2,12]]}
["COMPETENCIA MATEMÁTICA CIENCIA E TECNOLOXÍA  5º PRIMARIA",null,null,null,null,null,null,null,null,null,null,"COMPETENCIA MATEMÁTICA CIENCIA E TECNOLOXÍA  5º PRIMARIA",null,null,null,null,null,null,null,null,null,null,"COMPETENCIA MATEMÁTICA CIENCIA E TECNOLOXÍA  5º PRIMARIA"]
["5º A",null,"CIENCIAS DA NATUREZA",null,"CIENCIAS SOCIAIS",null,null,null,null,null,null,"5º A",null,"EDUCACIÓN PLÁSTICA",null,null,null,"L. CASTELÁ",null,"L. GALEGA",null,null,"5º A",null,"MATEMÁTICAS",null,null,null,"NOTA MEDIA",null,"COMPETENCIA MATEMÁTICA C. E T.  5º PRIMARIA"]
[null,null,"5º-CNB3.3.3 - Identifica algunhas actuacións humanas que modifican o medio natural e as causas de extinción de especies e explica algunhas actuacións para o seu coidado.",null,"5º-CSB2.4.1 - Identifica e clasifica os diferentes tipos de mapas, define que é a escala nun mapa e emprega e interpreta os signos convencionais máis usuais que poden aparecer nel.",null,"5º-CSB2.6.2 - Describe e sinala nun mapa os tipos de climas de España, e as zonas ás que afecta cada un, interpretando e analizando climogramas de distintos territorios de España e relacionándoos co clima ao que pertence.",null,"5º-CSB3.5.2 - Interpreta unha pirámide de poboación e outros gráficos usados no estudo da poboación.",null,null,null,null,"5º-EPB3.1.5 - Representa e aplica adecuadamente o eixe de simetría.",null,"5º-EPB3.1.6 - Representa formas xeométricas con precisión e coa axuda da cuadrícula e as ferramentas básicas.",null,"5º-LCB2.2.5 - Relaciona a información contida nos gráficos e ilustracións e a relaciona coa información que aparece no texto",null,"5º-LGB2.2.1 - Interpreta e comprende, de maneira xeral, a información de gráficos, esquemas sinxelos e ilustracións redundantes, relacionándoa co contido do texto que acompaña.",null,null,null,null,"5º-MTB2.7.1 - Resolve problemas que impliquen o dominio dos contidos traballados, empregando estratexias heurísticas, de razoamento (clasificación, recoñecemento das relacións, uso de exemplos contrarios), creando conxecturas, construíndo, argumentando e tomando decisións, valorando as súas consecuencias e a conveniencia do seu uso.",null,"5º-MTB5.1.2 - Realiza e interpreta gráficos moi sinxelos: diagramas de barras, poligonais e sectoriais, con datos obtidos de situacións moi próximas.",null,null,null,"5º A",null,"NOTA MEDIA","CUALIFICACIÓN"]
[null,"ALUMNO /A","Nota",7.0000000000000007E-2,"Nota",0.1,"Nota",0.09,"Nota",0.09,null,null,"ALUMNO /A","Nota",0.02,"Nota",0.03,"Nota",0.05,"Nota",0.05,null,null,"ALUMNO /A","Nota",0.3,"Nota",0.2,1,null,null,"ALUMNO /A",1]
[1,null,null,{"$f":"C5*0.07","v":0},null,{"$f":"E5*0.1","v":0},null,{"$f":"G5*0.09","v":0},null,{"$f":"I5*0.09","v":0},null,1,null,null,{"$f":"N5*0.02","v":0},null,{"$f":"P5*0.03","v":0},null,{"$f":"R5*0.05","v":0},null,{"$f":"T5*0.05","v":0},null,1,null,null,{"$f":"Y5*0.3","v":0},null,{"$f":"AA5*0.2","v":0},{"$f":"SUM(AB5,Z5,U5,S5,Q5,O5,J5,H5,F5,D5)","v":0},null,1,null,{"$f":"AC5","v":0},{"$f":"IF(AG5<5,\"INSUFICIENTE\",IF(AG5<6,\"SUFICIENTE\",IF(AG5<7,\"BIEN\",IF(AG5<9,\"NOTABLE\",\"SOBRESALIENTE\"))))","v":"INSUFICIENTE"}]
[2,null,null,{"$f":"C6*0.07","v":0},null,{"$f":"E6*0.1","v":0},null,{"$f":"G6*0.09","v":0},null,{"$f":"I6*0.09","v":0},null,2,null,null,{"$f":"N6*0.02","v":0},null,{"$f":"P6*0.03","v":0},null,{"$f":"R6*0.05","v":0},null,{"$f":"T6*0.05","v":0},null,2,null,null,{"$f":"Y6*0.3","v":0},null,{"$f":"AA6*0.2","v":0},{"$f":"SUM(AB6,Z6,U6,S6,Q6,O6,J6,H6,F6,D6)","v":0},null,2,null,{"$f":"AC6","v":0},{"$f":"IF(AG6<5,\"INSUFICIENTE\",IF(AG6<6,\"SUFICIENTE\",IF(AG6<7,\"BIEN\",IF(AG6<9,\"NOTABLE\",\"SOBRESALIENTE\"))))","v":"INSUFICIENTE"}]
[3,null,null,0,null,0,null,0,null,0,null,3,null,null,0,null,0,null,0,null,0,null,3,null,null,0,null,0,0,null,3,null,0,"INSUFICIENTE"]
[4,null,null,0,null,0,null,0,null,0,null,4,null,null,0,null,0,null,0,null,0,null,4,null,null,0,null,0,0,null,4,null,0,"INSUFICIENTE"]
[5,null,null,0,null,0,null,0,null,0,null,5,null,null,0,null,0,null,0,null,0,null,5,null,null,0,null,0,0,null,5,null,0,"INSUFICIENTE"]
[{"$f":"A9+1","v":6},null,null,0,null,0,null,0,null,0,null,{"$f":"L9+1","v":6},null,null,0,null,0,null,0,null,0,null,{"$f":"W9+1","v":6},null,null,0,null,0,0,null,6,null,0,"INSUFICIENTE"]
[{"$f":"A10+1","v":7},null,null,0,null,0,null,0,null,0,null,{"$f":"L10+1","v":7},null,null,0,null,0,null,0,null,0,null,{"$f":"W10+1","v":7},null,null,0,null,0,0,null,7,null,0,"INSUFICIENTE"]
[8,null,null,0,null,0,null,0,null,0,null,8,null,null,0,null,0,null,0,null,0,null,8,null,null,0,null,0,0,null,8,null,0,"INSUFICIENTE"]
[9,null,null,0,null,0,null,0,null,0,null,9,null,null,0,null,0,null,0,null,0,null,9,null,null,0,null,0,0,null,9,null,0,"INSUFICIENTE"]
[10,null,null,0,null,0,null,0,null,0,null,10,null,null,0,null,0,null,0,null,0,null,10,null,null,0,null,0,0,null,10,null,0,"INSUFICIENTE"]
[11,null,null,0,null,0,null,0,null,0,null,11,null,null,0,null,0,null,0,null,0,null,11,null,null,0,null,0,0,null,11,null,0,"INSUFICIENTE"]
[12,null,null,0,null,0,null,0,null,0,null,12,null,null,0,null,0,null,0,null,0,null,12,null,null,0,null,0,0,null,12,null,0,"INSUFICIENTE"]
[13,null,null,0,null,0,null,0,null,0,null,13,null,null,0,null,0,null,0,null,0,null,13,null,null,0,null,0,0,null,13,null,0,"INSUFICIENTE"]
[14,null,null,0,null,0,null,0,null,0,null,14,null,null,0,null,0,null,0,null,0,null,14,null,null,0,null,0,0,null,14,null,0,"INSUFICIENTE"]
[15,null,null,0,null,0,null,0,null,0,null,15,null,null,0,null,0,null,0,null,0,null,15,null,null,0,null,0,0,null,15,null,0,"INSUFICIENTE"]
[16,null,null,0,null,0,null,0,null,0,null,16,null,null,0,null,0,null,0,null,0,null,16,null,null,0,null,0,0,null,16,null,0,"INSUFICIENTE"]
[17,null,null,0,null,0,null,0,null,0,null,17,null,null,0,null,0,null,0,null,0,null,17,null,null,0,null,0,0,null,17,null,0,"INSUFICIENTE"]
[18,null,null,0,null,0,null,0,null,0,null,18,null,null,0,null,0,null,0,null,0,null,18,null,null,0,null,0,0,null,18,null,0,"INSUFICIENTE"]
[19,null,null,0,null,0,null,0,null,0,null,19,null,null,0,null,0,null,0,null,0,null,19,null,null,0,null,0,0,null,19,null,0,"INSUFICIENTE"]
[20,null,null,0,null,0,null,0,null,0,null,20,null,null,0,null,0,null,0,null,0,null,20,null,null,0,null,0,0,null,20,null,0,"INSUFICIENTE"]
[21,null,null,0,null,0,null,0,null,0,null,21,null,null,0,null,0,null,0,null,0,null,21,null,null,0,null,0,0,null,21,null,0,"INSUFICIENTE"]
[22,null,null,0,null,0,null,0,null,0,null,22,null,null,0,null,0,null,0,null,0,null,22,null,null,0,null,0,0,null,22,null,0,"INSUFICIENTE"]
[23,null,null,{"$f":"C27*0.07","v":0},null,{"$f":"E27*0.1","v":0},null,{"$f":"G27*0.09","v":0},null,{"$f":"I27*0.09","v":0},null,23,null,null,{"$f":"N27*0.02","v":0},null,0,null,{"$f":"R27*0.05","v":0},null,{"$f":"T27*0.05","v":0},null,23,null,null,{"$f":"Y27*0.3","v":0},null,{"$f":"AA27*0.2","v":0},{"$f":"SUM(AB27,Z27,U27,S27,Q27,O27,J27,H27,F27,D27)","v":0},null,23,null,{"$f":"AC27","v":0},{"$f":"IF(AG27<5,\"INSUFICIENTE\",IF(AG27<6,\"SUFICIENTE\",IF(AG27<7,\"BIEN\",IF(AG27<9,\"NOTABLE\",\"SOBRESALIENTE\"))))","v":"INSUFICIENTE"}]
[24,null,null,0,null,0,null,0,null,0,null,24,null,null,0,null,0,null,0,null,0,null,24,null,null,0,null,0,0,null,24,null,0,"INSUFICIENTE"]
[25,null,null,0,null,0,null,0,null,0,null,25,null,null,0,null,0,null,0,null,0,null,25,null,null,0,null,0,0,null,25,null,0,"INSUFICIENTE"]